fUSD/lending_fUSD_20250930
["ID","MTS","AMOUNT","RATE_DAILY","PERIOD"]
[388559111,1759240358122,-500.0,0.00020547,2]
[388559112,1759240358132,-900.53,0.00020547,2]
[388559113,1759240358141,-500.0,0.00020547,2]
[388559114,1759240358151,-2800.4,0.00020547,2]
[388559115,1759240358161,-3710.9,0.00020547,2]
[388559116,1759240358171,-500.0,0.00020547,2]
[388559117,1759240358181,-500.0,0.00020547,2]
[388559118,1759240358190,-500.0,0.00020547,2]
[388559119,1759240358199,-500.0,0.00020547,2]
[388559120,1759240358209,-780.07,0.00020547,2]
[388559121,1759240358218,-792.06,0.00020547,2]
[388559122,1759240358228,-1076.9,0.00020547,2]
[388559123,1759240358238,-1334.02,0.00020547,2]
[388559124,1759240358248,-1098.61,0.00020547,2]
[388559125,1759240358258,-500.0,0.00020547,2]
[388559126,1759240358268,-544.22,0.00020547,2]
[388559127,1759240358278,-500.0,0.00020547,2]
[388559128,1759240358287,-500.0,0.00020547,2]
[388559129,1759240358298,-714.53,0.00020547,2]
[388559130,1759240358309,-3350.21,0.00020547,2]
[388559131,1759240358320,-500.0,0.00020547,2]
[388559132,1759240358329,-500.0,0.00020547,2]
[388559133,1759240358339,-705.59,0.00020547,2]
[388559134,1759240358349,-840.44,0.00020547,2]
[388559135,1759240358360,-500.0,0.00020547,2]
[388559136,1759240358375,-1195.98,0.00020547,2]
[388559137,1759240358385,-2690.42,0.00020547,2]
[388559138,1759240358395,-571.65,0.00020547,2]
[388559139,1759240358405,-500.0,0.00020547,2]
[388559140,1759240358415,-165.83053096,0.00020547,2]
[388559141,1759240358425,-500.0,0.00020547,2]
[388559142,1759240358436,-500.0,0.00020547,2]
[388559143,1759240358445,-500.0,0.00020547,2]
[388559144,1759240358455,-500.0,0.00020547,2]
[388559145,1759240358464,-1726.29,0.00020547,2]
[388559146,1759240358474,-500.0,0.00020547,2]
[388559147,1759240358484,-500.0,0.00020547,2]
[388559148,1759240358494,-500.0,0.00020547,2]
[388559149,1759240358503,-5086.08,0.00020547,2]
[388559150,1759240358513,-500.0,0.00020547,2]
[388559151,1759240358523,-500.0,0.00020547,2]
[388559152,1759240358533,-500.0,0.00020547,2]
[388559153,1759240358543,-500.0,0.00020547,2]
[388559154,1759240358553,-4456.96,0.00020547,2]
[388559155,1759240358564,-500.0,0.00020547,2]
[388559156,1759240358574,-621.6,0.00020547,2]
[388559157,1759240358584,-500.0,0.00020547,2]
[388559158,1759240358594,-5163.16,0.00020547,2]
[388559159,1759240358604,-500.0,0.00020547,2]
[388559160,1759240358618,-500.0,0.00020547,2]
[388559161,1759240358630,-500.0,0.00020547,2]
[388559162,1759240358648,-1240.5,0.00020547,2]
[388559163,1759240358659,-1599.6,0.00020547,2]
[388559164,1759240358674,-5656.93,0.00020547,2]
[388559165,1759240358684,-1771.49,0.00020547,2]
[388559166,1759240358694,-571.61,0.00020547,2]
[388559167,1759240358704,-596.77,0.00020547,2]
[388559168,1759240358714,-500.0,0.00020547,2]
[388559169,1759240358724,-3534.18,0.00020547,2]
[388559170,1759240358734,-500.0,0.00020547,2]
[388559171,1759240358744,-500.0,0.00020547,2]
[388559172,1759240358754,-500.0,0.00020547,2]
[388559173,1759240358764,-683.71,0.00020547,2]
[388559174,1759240358775,-500.0,0.00020547,2]
[388559175,1759240358785,-622.32534741,0.00020547,2]
[388559176,1759240358795,-1725.05,0.00020547,2]
[388559177,1759240358805,-2792.01,0.00020547,2]
[388559178,1759240358815,-1784.28,0.00020547,2]
[388559179,1759240358826,-500.0,0.00020547,2]
[388559180,1759240358835,-773.33,0.00020547,2]
[388559181,1759240358845,-1417.17,0.00020547,2]
[388559182,1759240358855,-500.0,0.00020547,2]
[388559183,1759240358869,-789.35,0.00020547,2]
[388559184,1759240358880,-3388.02,0.00020547,2]
[388559185,1759240358890,-586.61,0.00020547,2]
[388559186,1759240358902,-1267.03,0.00020547,2]
[388559187,1759240358912,-500.0,0.00020547,2]
[388559188,1759240358923,-500.0,0.00020547,2]
[388559189,1759240358933,-982.97,0.00020547,2]
[388559190,1759240358943,-500.0,0.00020547,2]
[388559191,1759240358952,-500.0,0.00020547,2]
[388559192,1759240358962,-2314.25,0.00020547,2]
[388559193,1759240358971,-1270.81,0.00020547,2]
[388559194,1759240358981,-500.0,0.00020547,2]
[388559195,1759240358992,-1218.74,0.00020547,2]
[388559196,1759240359001,-621.59,0.00020547,2]
[388559197,1759240359011,-500.0,0.00020547,2]
[388559198,1759240359021,-608.6,0.00020547,2]
[388559199,1759240359030,-2098.99,0.00020547,2]
[388559200,1759240359040,-500.0,0.00020547,2]
[388559201,1759240359050,-3224.35,0.00020547,2]
[388559202,1759240359060,-1286.78,0.00020547,2]
[388559203,1759240359071,-2187.82,0.00020547,2]
[388559204,1759240359081,-500.0,0.00020547,2]
[388559205,1759240359091,-1729.31,0.00020547,2]
[388559206,1759240359101,-1087.68,0.00020547,2]
[388559207,1759240359113,-437.01693127,0.00020547,2]
[388559208,1759240359123,-1432.91,0.00020547,2]
[388559209,1759240359134,-1339.37,0.00020547,2]
[388559210,1759240359145,-4935.23,0.00020547,2]
[388559211,1759240359155,-500.0,0.00020547,2]
[388559212,1759240359167,-6485.87,0.00020547,2]
[388559213,1759240359178,-977.34,0.00020547,2]
[388559214,1759240359188,-982.28,0.00020547,2]
[388559215,1759240359198,-500.0,0.00020547,2]
[388559216,1759240359208,-500.0,0.00020547,2]
[388559217,1759240359217,-640.07,0.00020547,2]
[388559218,1759240359228,-500.0,0.00020547,2]
[388559219,1759240359237,-500.0,0.00020547,2]
[388559220,1759240359247,-4283.19,0.00020547,2]
[388559221,1759240359257,-500.0,0.00020547,2]
[388559222,1759240359266,-3484.89,0.00020547,2]
[388559223,1759240359275,-220.2419984,0.00020547,2]
[388559224,1759240359284,-879.58,0.00020547,2]
[388559225,1759240359296,-500.0,0.00020547,2]
[388559226,1759240359307,-771.28,0.00020547,2]
[388559227,1759240359317,-1514.61,0.00020547,2]
[388559228,1759240359326,-500.0,0.00020547,2]
[388559229,1759240359336,-642.61,0.00020547,2]
[388559230,1759240359347,-1615.18,0.00020547,2]
[388559231,1759240359356,-5250.86,0.00020547,2]
[388559232,1759240359369,-554.09,0.00020547,2]
[388559233,1759240359379,-4147.05,0.00020547,2]
[388559234,1759240359388,-500.0,0.00020547,2]
[388559235,1759240359398,-500.0,0.00020547,2]
[388559236,1759240359407,-500.0,0.00020547,2]
[388559237,1759240359419,-2880.85,0.00020547,2]
[388559238,1759240359429,-500.0,0.00020547,2]
[388559239,1759240359438,-1955.1,0.00020547,2]
[388559240,1759240359447,-4642.17,0.00020547,2]
[388559241,1759240359457,-1140.78,0.00020547,2]
[388559242,1759240359466,-3000.73,0.00020547,2]
[388559243,1759240359476,-500.0,0.00020547,2]
[388559244,1759240359486,-470.09502259,0.00020547,2]
[388559245,1759240359496,-909.25,0.00020547,2]
[388559246,1759240359507,-1566.99,0.00020547,2]
[388559247,1759240359517,-500.0,0.00020547,2]
[388559248,1759240359527,-701.03,0.00020547,2]
[388559249,1759240359536,-500.0,0.00020547,2]
[388559250,1759240359546,-551.13,0.00020547,2]
[388559251,1759240359557,-1273.89,0.00020547,2]
[388559252,1759240359566,-614.69,0.00020547,2]
[388559253,1759240359575,-500.0,0.00020547,2]
[388559254,1759240359585,-5689.13,0.00020547,2]
[388559255,1759240359595,-1076.21,0.00020547,2]
[388559256,1759240359605,-884.18,0.00020547,2]
[388559257,1759240359617,-500.0,0.00020547,2]
[388559258,1759240359627,-3314.41,0.00020547,2]
[388559259,1759240359636,-500.0,0.00020547,2]
[388559260,1759240359646,-2180.29,0.00020547,2]
[388559261,1759240359656,-3873.86,0.00020547,2]
[388559262,1759240359666,-3687.17,0.00020547,2]
[388559263,1759240359675,-913.68,0.00020547,2]
[388559264,1759240359684,-659.75,0.00020547,2]
[388559265,1759240359694,-4847.84,0.00020547,2]
[388559266,1759240359704,-500.0,0.00020547,2]
[388559267,1759240359714,-2846.88,0.00020547,2]
[388559268,1759240359724,-3509.0,0.00020547,2]
[388559269,1759240359734,-657.41,0.00020547,2]
[388559270,1759240359744,-686.0,0.00020547,2]
[388559271,1759240359754,-4580.15,0.00020547,2]
[388559272,1759240359763,-500.0,0.00020547,2]
[388559273,1759240359773,-2792.33,0.00020547,2]
[388559274,1759240359783,-549.1,0.00020547,2]
[388559275,1759240359793,-1789.31,0.00020547,2]
[388559276,1759240359802,-500.0,0.00020547,2]
[388559277,1759240359812,-684.53,0.00020547,2]
[388559278,1759240359823,-500.0,0.00020547,2]
[388559279,1759240359833,-500.0,0.00020547,2]
[388559280,1759240359843,-500.0,0.00020547,2]
[388559281,1759240359853,-509.97882095,0.00020547,2]
[388559282,1759240359864,-751.52,0.00020547,2]
[388559283,1759240359873,-4288.38,0.00020547,2]
[388559284,1759240359882,-500.0,0.00020547,2]
[388559285,1759240359892,-4326.28,0.00020547,2]
[388559286,1759240359901,-560.42,0.00020547,2]
[388559287,1759240359910,-2533.68,0.00020547,2]
[388559288,1759240359919,-2033.24,0.00020547,2]
[388559289,1759240359928,-500.0,0.00020547,2]
[388559290,1759240359937,-3758.3,0.00020547,2]
[388559291,1759240359947,-2934.06,0.00020547,2]
[388559292,1759240359956,-650.69,0.00020547,2]
[388559293,1759240359965,-486.35403163,0.00020547,2]
[388559294,1759240359974,-1877.95,0.00020547,2]
[388559295,1759240359984,-532.98,0.00020547,2]
[388559296,1759240359993,-500.0,0.00020547,2]
[388559297,1759240360003,-4173.34,0.00020547,2]
[388559298,1759240360012,-2889.91,0.00020547,2]
[388559299,1759240360022,-500.0,0.00020547,2]
[388559300,1759240360031,-500.0,0.00020547,2]
[388559301,1759240360040,-3353.46,0.00020547,2]
[388559302,1759240360050,-517.4,0.00020547,2]
[388559303,1759240360059,-346.11439329,0.00020547,2]
[388559304,1759240360068,-500.0,0.00020547,2]
[388559305,1759240360077,-500.0,0.00020547,2]
[388559306,1759240360087,-500.0,0.00020547,2]
[388559307,1759240360096,-3888.52,0.00020547,2]
[388559308,1759240360104,-500.0,0.00020547,2]
[388559309,1759240360115,-4877.04,0.00020547,2]
[388559310,1759240360125,-500.0,0.00020547,2]
[388559311,1759240360135,-500.0,0.00020547,2]
[388559312,1759240360144,-500.0,0.00020547,2]
[388559313,1759240360154,-500.0,0.00020547,2]
[388559314,1759240360163,-3410.55,0.00020547,2]
[388559315,1759240360173,-3031.79,0.00020547,2]
[388559316,1759240360183,-2806.65,0.00020547,2]
[388559317,1759240360192,-500.0,0.00020547,2]
[388559318,1759240360201,-3132.31,0.00020547,2]
[388559319,1759240360211,-500.0,0.00020547,2]
[388559320,1759240360221,-500.0,0.00020547,2]
[388559321,1759240360230,-2707.99,0.00020547,2]
[388559322,1759240360240,-2707.99,0.00020547,2]
[388559323,1759240360249,-2100.64,0.00020547,2]
[388559324,1759240360259,-1688.46,0.00020547,2]
[388559325,1759240360268,-3411.37,0.00020547,2]
[388559326,1759240360278,-521.13,0.00020547,2]
[388559327,1759240360288,-3419.82,0.00020547,2]
[388559328,1759240360297,-4003.15,0.00020547,2]
[388559329,1759240360306,-551.58,0.00020547,2]
[388559330,1759240360316,-500.0,0.00020547,2]
[388559331,1759240360326,-2415.06,0.00020547,2]
[388559332,1759240360336,-9394.178026,0.00020547,2]
[388559333,1759240360346,-800.44,0.00020547,2]
[388559334,1759240360356,-405.942172,0.00020547,2]
[388559335,1759240360368,-724.36,0.00020547,2]
[388559336,1759240360378,-417.411714,0.00020547,2]
[388559337,1759240360388,-2013.75,0.00020547,2]
[388559338,1759240360397,-2742.48,0.00020547,2]
[388559339,1759240360406,-342.860755,0.00020547,2]
[388559340,1759240360416,-500.0,0.00020547,2]
[388559341,1759240360426,-500.0,0.00020547,2]
[388559342,1759240360435,-3714.03504,0.00020547,2]
[388559343,1759240360445,-500.0,0.00020547,2]
[388559344,1759240360454,-4139.96,0.00020547,2]
[388559345,1759240360464,-500.0,0.00020547,2]
[388559346,1759240360473,-2166.0,0.00020547,2]
[388559347,1759240360483,-8041.96422,0.00020547,2]
[388559348,1759240360493,-500.0,0.00020547,2]
[388559349,1759240360503,-1899.13,0.00020547,2]
[388559350,1759240360512,-500.0,0.00020547,2]
[388559351,1759240360522,-1756.01,0.00020547,2]
[388559352,1759240360531,-2473.07,0.00020547,2]
[388559353,1759240360541,-731.53,0.00020547,2]
[388559354,1759240360551,-526.92,0.00020547,2]
[388559355,1759240360561,-500.0,0.00020547,2]
[388559356,1759240360570,-604.76,0.00020547,2]
[388559357,1759240360580,-3201.03,0.00020547,2]
[388559358,1759240360589,-5238.49,0.00020547,2]
[388559359,1759240360600,-5111.26,0.00020547,2]
[388559360,1759240360610,-500.0,0.00020547,2]
[388559361,1759240360623,-2560.34,0.00020547,2]
[388559362,1759240360632,-4640.6,0.00020547,2]
[388559363,1759240360643,-500.0,0.00020547,2]
[388559364,1759240360653,-500.0,0.00020547,2]
[388559365,1759240360663,-500.0,0.00020547,2]
[388559366,1759240360672,-1545.67,0.00020547,2]
[388559367,1759240360683,-4031.72,0.00020547,2]
[388559368,1759240360692,-500.0,0.00020547,2]
[388559369,1759240360702,-500.0,0.00020547,2]
[388559370,1759240360712,-500.0,0.00020547,2]
[388559371,1759240360724,-1154.63,0.00020547,2]
[388559372,1759240360733,-500.0,0.00020547,2]
[388559373,1759240360743,-1918.23,0.00020547,2]
[388559374,1759240360752,-883.02,0.00020547,2]
[388559375,1759240360774,-2339.41,0.00020547,2]
[388559376,1759240360784,-500.0,0.00020547,2]
[388559377,1759240360794,-2821.85,0.00020547,2]
[388559378,1759240360805,-500.0,0.00020547,2]
[388559379,1759240360816,-500.0,0.00020547,2]
[388559380,1759240360826,-500.0,0.00020547,2]
[388559381,1759240360836,-1184.74,0.00020547,2]
[388559382,1759240360847,-500.0,0.00020547,2]
[388559383,1759240360857,-1299.41,0.00020547,2]
[388559384,1759240360870,-4489.31,0.00020547,2]
[388559385,1759240360880,-500.0,0.00020547,2]
[388559386,1759240360890,-3466.53,0.00020547,2]
[388559387,1759240360900,-934.32,0.00020547,2]
[388559388,1759240360910,-500.0,0.00020547,2]
[388559389,1759240360921,-881.11,0.00020547,2]
[388559390,1759240360931,-500.0,0.00020547,2]
[388559391,1759240360941,-3298.82,0.00020547,2]
[388559392,1759240360951,-4290.21,0.00020547,2]
[388559393,1759240360962,-500.0,0.00020547,2]
[388559394,1759240360972,-500.0,0.00020547,2]
[388559395,1759240360982,-500.0,0.00020547,2]
[388559396,1759240360992,-500.0,0.00020547,2]
[388559397,1759240361002,-3057.69,0.00020547,2]
[388559398,1759240361012,-500.0,0.00020547,2]
[388559399,1759240361021,-500.0,0.00020547,2]
[388559400,1759240361031,-4344.73,0.00020547,2]
[388559401,1759240361043,-500.0,0.00020547,2]
[388559402,1759240361053,-500.0,0.00020547,2]
[388559403,1759240361062,-500.0,0.00020547,2]
[388559404,1759240361073,-500.0,0.00020547,2]
[388559405,1759240361083,-500.0,0.00020547,2]
[388559406,1759240361093,-1700.17,0.00020547,2]
[388559407,1759240361102,-3909.15,0.00020547,2]
[388559408,1759240361114,-1339.27,0.00020547,2]
[388559409,1759240361124,-500.0,0.00020547,2]
[388559410,1759240361134,-500.0,0.00020547,2]
[388559411,1759240361144,-2034.42,0.00020547,2]
[388559412,1759240361154,-500.0,0.00020547,2]
[388559413,1759240361169,-500.0,0.00020547,2]
[388559414,1759240361179,-500.0,0.00020547,2]
[388559415,1759240361189,-736.64,0.00020547,2]
[388559416,1759240361199,-500.0,0.00020547,2]
[388559417,1759240361209,-500.0,0.00020547,2]
[388559418,1759240361219,-500.0,0.00020547,2]
[388559419,1759240361229,-732.56,0.00020547,2]
[388559420,1759240361239,-3067.08,0.00020547,2]
[388559421,1759240361250,-1529.83,0.00020547,2]
[388559422,1759240361260,-938.56,0.00020547,2]
[388559423,1759240361270,-500.0,0.00020547,2]
[388559424,1759240361281,-2151.04,0.00020547,2]
[388559425,1759240361291,-500.0,0.00020547,2]
[388559426,1759240361305,-500.0,0.00020547,2]
[388559427,1759240361315,-1542.41,0.00020547,2]
[388559428,1759240361326,-500.0,0.00020547,2]
[388559429,1759240361339,-3516.79,0.00020547,2]
[388559430,1759240361350,-500.0,0.00020547,2]
[388559431,1759240361360,-3168.12,0.00020547,2]
[388559432,1759240361379,-583.0,0.00020547,2]
[388559433,1759240361389,-930.23,0.00020547,2]
[388559434,1759240361400,-500.0,0.00020547,2]
[388559435,1759240361410,-3884.01,0.00020547,2]
[388559436,1759240361420,-500.0,0.00020547,2]
[388559437,1759240361431,-2882.92,0.00020547,2]
[388559438,1759240361442,-500.0,0.00020547,2]
[388559439,1759240361453,-589.91,0.00020547,2]
[388559440,1759240361463,-669.58,0.00020547,2]
[388559441,1759240361473,-380.82057291,0.00020547,2]
[388559442,1759240361482,-3512.3,0.00020547,2]
[388559443,1759240361492,-500.0,0.00020547,2]
[388559444,1759240361502,-3713.1,0.00020547,2]
[388559445,1759240361513,-939.33,0.00020547,2]
[388559446,1759240361523,-547.83,0.00020547,2]
[388559447,1759240361533,-1922.14,0.00020547,2]
[388559448,1759240361543,-1367.87,0.00020547,2]
[388559449,1759240361553,-1836.55,0.00020547,2]
[388559450,1759240361563,-500.0,0.00020547,2]
[388559451,1759240361573,-645.84,0.00020547,2]
[388559452,1759240361588,-906.86,0.00020547,2]
[388559453,1759240361598,-500.19,0.00020547,2]
[388559454,1759240361608,-500.0,0.00020547,2]
[388559455,1759240361622,-555.49417406,0.00020547,2]
[388559456,1759240361632,-872.23,0.00020547,2]
[388559457,1759240361643,-703.65,0.00020547,2]
[388559458,1759240361654,-635.26,0.00020547,2]
[388559459,1759240361665,-610.56,0.00020547,2]
[388559460,1759240361675,-831.12,0.00020547,2]
[388559461,1759240361685,-657.04,0.00020547,2]
[388559462,1759240361695,-2138.48,0.00020547,2]
[388559463,1759240361705,-1814.33,0.00020547,2]
[388559464,1759240361716,-500.0,0.00020547,2]
[388559465,1759240361726,-934.1,0.00020547,2]
[388559466,1759240361738,-500.0,0.00020547,2]
[388559467,1759240361749,-4201.08,0.00020547,2]
[388559468,1759240361761,-500.0,0.00020547,2]
[388559469,1759240361773,-1096.67,0.00020547,2]
[388559470,1759240361784,-4322.86,0.00020547,2]
[388559471,1759240361795,-925.67,0.00020547,2]
[388559472,1759240361806,-5296.49,0.00020547,2]
[388559473,1759240361817,-1246.74,0.00020547,2]
[388559474,1759240361829,-3246.07,0.00020547,2]
[388559475,1759240361840,-1879.37,0.00020547,2]
[388559476,1759240361852,-500.0,0.00020547,2]
[388559477,1759240361865,-500.0,0.00020547,2]
[388559478,1759240361876,-2201.18,0.00020547,2]
[388559479,1759240361887,-500.0,0.00020547,2]
[388559480,1759240361898,-2013.49,0.00020547,2]
[388559481,1759240361909,-981.64,0.00020547,2]
[388559482,1759240361921,-500.0,0.00020547,2]
[388559483,1759240361932,-1331.16,0.00020547,2]
[388559484,1759240361943,-879.12,0.00020547,2]
[388559485,1759240361954,-598.23,0.00020547,2]
[388559486,1759240361966,-710.39,0.00020547,2]
[388559487,1759240361977,-736.23,0.00020547,2]
[388559488,1759240361993,-500.0,0.00020547,2]
[388559489,1759240362004,-500.0,0.00020547,2]
[388559490,1759240362015,-500.0,0.00020547,2]
[388559491,1759240362026,-2843.26,0.00020547,2]
[388559492,1759240362037,-2775.75,0.00020547,2]
[388559493,1759240362049,-500.0,0.00020547,2]
[388559494,1759240362060,-2015.99,0.00020547,2]
[388559495,1759240362072,-500.0,0.00020547,2]
[388559496,1759240362083,-1744.81,0.00020547,2]
[388559497,1759240362094,-500.0,0.00020547,2]
[388559498,1759240362105,-4492.44,0.00020547,2]
[388559499,1759240362116,-500.0,0.00020547,2]
[388559500,1759240362128,-1567.07,0.00020547,2]
[388559501,1759240362139,-500.0,0.00020547,2]
[388559502,1759240362150,-500.0,0.00020547,2]
[388559503,1759240362161,-1731.1,0.00020547,2]
[388559504,1759240362171,-1622.26,0.00020547,2]
[388559505,1759240362182,-786.49,0.00020547,2]
[388559506,1759240362194,-4390.54,0.00020547,2]
[388559507,1759240362205,-500.0,0.00020547,2]
[388559508,1759240362217,-5493.72,0.00020547,2]
[388559509,1759240362228,-500.0,0.00020547,2]
[388559510,1759240362240,-1863.44,0.00020547,2]
[388559511,1759240362251,-1202.76,0.00020547,2]
[388559512,1759240362263,-500.0,0.00020547,2]
[388559513,1759240362274,-2774.48,0.00020547,2]
[388559514,1759240362285,-5219.82,0.00020547,2]
[388559515,1759240362296,-1956.66,0.00020547,2]
[388559516,1759240362308,-1318.96,0.00020547,2]
[388559517,1759240362319,-4927.14,0.00020547,2]
[388559518,1759240362330,-1978.62,0.00020547,2]
[388559519,1759240362341,-500.0,0.00020547,2]
[388559520,1759240362352,-500.0,0.00020547,2]
[388559521,1759240362364,-190.77378754,0.00020547,2]
[388559522,1759240362378,-1583.44,0.00020547,2]
[388559523,1759240362389,-4340.48,0.00020547,2]
[388559524,1759240362401,-1073.21,0.00020547,2]
[388559525,1759240362411,-626.84,0.00020547,2]
[388559526,1759240362423,-1300.2,0.00020547,2]
[388559527,1759240362436,-500.0,0.00020547,2]
[388559528,1759240362447,-2633.64,0.00020547,2]
[388559529,1759240362459,-2610.4,0.00020547,2]
[388559530,1759240362471,-989.47,0.00020547,2]
[388559531,1759240362483,-1169.32,0.00020547,2]
[388559532,1759240362494,-539.23269709,0.00020547,2]
[388559533,1759240362506,-649.78,0.00020547,2]
[388559534,1759240362517,-500.0,0.00020547,2]
[388559535,1759240362528,-4104.25,0.00020547,2]
[388559536,1759240362539,-500.0,0.00020547,2]
[388559537,1759240362550,-3027.16,0.00020547,2]
[388559538,1759240362562,-500.0,0.00020547,2]
[388559539,1759240362573,-3443.7,0.00020547,2]
[388559540,1759240362585,-654.94,0.00020547,2]
[388559541,1759240362599,-955.76,0.00020547,2]
[388559542,1759240362610,-500.0,0.00020547,2]
[388559543,1759240362625,-500.0,0.00020547,2]
[388559544,1759240362636,-865.96,0.00020547,2]
[388559545,1759240362648,-3571.88,0.00020547,2]
[388559546,1759240362659,-5002.0,0.00020547,2]
[388559547,1759240362671,-500.0,0.00020547,2]
[388559548,1759240362683,-4248.48,0.00020547,2]
[388559549,1759240362695,-613.11,0.00020547,2]
[388559550,1759240362706,-1854.6,0.00020547,2]
[388559551,1759240362718,-500.0,0.00020547,2]
[388559552,1759240362729,-847.88,0.00020547,2]
[388559553,1759240362740,-760.35,0.00020547,2]
[388559554,1759240362752,-770.21,0.00020547,2]
[388559555,1759240362763,-3311.28,0.00020547,2]
[388559556,1759240362774,-559.36,0.00020547,2]
[388559557,1759240362785,-500.0,0.00020547,2]
[388559558,1759240362797,-672.26,0.00020547,2]
[388559559,1759240362808,-3545.03,0.00020547,2]
[388559560,1759240362821,-618.17,0.00020547,2]
[388559561,1759240362832,-4138.34,0.00020547,2]
[388559562,1759240362844,-3363.37,0.00020547,2]
[388559563,1759240362856,-2219.19,0.00020547,2]
[388559564,1759240362870,-11135.57,0.00020547,2]
[388559565,1759240362882,-621.31,0.00020547,2]
[388559566,1759240362893,-500.0,0.00020547,2]
[388559567,1759240362904,-1141.7,0.00020547,2]
[388559568,1759240362915,-500.34,0.00020547,2]
[388559569,1759240362927,-2474.62,0.00020547,2]
[388559570,1759240362939,-500.0,0.00020547,2]
[388559571,1759240362950,-1934.01,0.00020547,2]
[388559572,1759240362962,-745.96,0.00020547,2]
[388559573,1759240362974,-500.0,0.00020547,2]
[388559574,1759240362986,-6814.98,0.00020547,2]
[388559575,1759240362997,-1325.61,0.00020547,2]
[388559576,1759240363008,-500.0,0.00020547,2]
[388559577,1759240363020,-500.0,0.00020547,2]
[388559578,1759240363031,-500.0,0.00020547,2]
[388559579,1759240363048,-4836.52,0.00020547,2]
[388559580,1759240363064,-10507.95,0.00020547,2]
[388559581,1759240363075,-1355.54,0.00020547,2]
[388559582,1759240363087,-500.0,0.00020547,2]
[388559583,1759240363099,-1963.48,0.00020547,2]
[388559584,1759240363110,-500.0,0.00020547,2]
[388559585,1759240363126,-500.0,0.00020547,2]
[388559586,1759240363137,-500.0,0.00020547,2]
[388559587,1759240363149,-3372.83,0.00020547,2]
[388559588,1759240363160,-1073.2,0.00020547,2]
[388559589,1759240363171,-300.0,0.00020547,2]
[388559590,1759240363183,-557.06,0.00020547,2]
[388559591,1759240363194,-500.0,0.00020547,2]
[388559592,1759240363682,-5791.96,0.00020547,2]
[388559593,1759240363724,-500.0,0.00020547,2]
[388559594,1759240363734,-500.0,0.00020547,2]
[388559595,1759240363744,-500.0,0.00020547,2]
[388559596,1759240363757,-3946.61,0.00020547,2]
[388559597,1759240363767,-500.0,0.00020547,2]
[388559598,1759240363778,-3259.44,0.00020547,2]
[388559599,1759240363788,-937.61,0.00020547,2]
[388559600,1759240363798,-3163.57,0.00020547,2]
[388559601,1759240363808,-5551.49,0.00020547,2]
[388559602,1759240363818,-3075.3,0.00020547,2]
[388559603,1759240363828,-500.0,0.00020547,2]
[388559604,1759240363837,-704.45,0.00020547,2]
[388559605,1759240363847,-509.5,0.00020547,2]
[388559606,1759240363857,-1849.62,0.00020547,2]
[388559607,1759240363869,-8599.07,0.00020547,2]
[388559608,1759240363880,-3998.87,0.00020547,2]
[388559609,1759240363891,-500.0,0.00020547,2]
[388559610,1759240363901,-4252.51,0.00020547,2]